bitfinex/quotes_BTCUSD_20230114
["timestamp","ask_amount","ask_price","bid_price","bid_amount"]
[1673695525829,2.01375634,20691.0,20690.0,0.00907509]
[1673695526065,1.79694114,20691.0,20690.0,0.00907509]
[1673695526310,2.01382762,20691.0,20690.0,0.00907509]
[1673695526550,1.79694114,20691.0,20690.0,0.00907509]
[1673695526787,2.83848709,20691.0,20690.0,0.00907509]
[1673695527041,2.47719286,20691.0,20690.0,0.00907509]
[1673695527287,2.91025174,20691.0,20690.0,0.00907509]
[1673695528020,2.47719286,20691.0,20690.0,0.00907509]
[1673695528333,2.91025174,20691.0,20690.0,0.00907509]
[1673695528580,3.38435391,20691.0,20690.0,0.00907509]
[1673695528822,0.00854356,20689.0,20684.0,0.00029187]
[1673695529083,0.3612105,20685.0,20684.0,0.00029187]
[1673695529321,1.42864365,20685.0,20684.0,0.00029187]
[1673695529572,1.79139805,20685.0,20684.0,0.00029187]
[1673695529814,1.79139805,20685.0,20684.0,0.00929187]
[1673695530075,1.79138126,20685.0,20684.0,0.00029187]
[1673695530331,1.7329133,20685.0,20684.0,0.00929187]
[1673695530625,1.87738149,20685.0,20684.0,0.00929187]
[1673695530876,1.66065519,20685.0,20684.0,0.00929187]
[1673695531368,1.66065519,20685.0,20684.0,0.00029187]
[1673695531369,1.70965519,20685.0,20684.0,0.00029187]
[1673695531623,1.565187,20685.0,20684.0,0.00029187]
[1673695531870,1.7888328,20685.0,20684.0,0.00029187]
[1673695532129,2.476417,20685.0,20684.0,0.00029187]
[1673695532365,2.95596641,20685.0,20684.0,0.00029187]
[1673695532615,2.95572939,20685.0,20684.0,0.00029187]
[1673695533157,3.32285898,20685.0,20684.0,0.00029187]
[1673695533375,3.92896115,20685.0,20684.0,0.00029187]
[1673695533618,3.14263871,20685.0,20684.0,0.00029187]
[1673695533854,2.87392337,20685.0,20684.0,0.00029187]
[1673695534108,1.92171891,20685.0,20684.0,0.00029187]
[1673695534339,1.64555123,20685.0,20684.0,0.00029187]
[1673695534582,1.78155123,20685.0,20684.0,0.00029187]
[1673695535066,1.67435468,20685.0,20684.0,0.00029187]
[1673695535316,1.79050331,20685.0,20684.0,0.00029187]
[1673695535557,1.92650331,20685.0,20684.0,0.00029187]
[1673695536098,2.21755889,20685.0,20684.0,0.00029187]
[1673695536344,2.11755889,20685.0,20684.0,0.00029187]
[1673695536593,1.82650331,20685.0,20684.0,0.00029187]
[1673695537334,1.04306131,20685.0,20684.0,0.00029187]
[1673695538056,1.14306131,20685.0,20684.0,0.00029187]
[1673695538784,1.34306131,20685.0,20684.0,0.00029187]
[1673695539038,1.63009369,20685.0,20684.0,0.00029187]
[1673695539293,1.73009369,20685.0,20684.0,0.00029187]
[1673695539562,1.63009369,20685.0,20684.0,0.00029187]
[1673695540272,1.34306131,20685.0,20684.0,0.00029187]
[1673695540506,1.820263,20685.0,20684.0,0.00029187]
[1673695541000,1.55994669,20685.0,20684.0,0.00029187]
[1673695541247,1.8902803,20685.0,20684.0,0.00029187]
[1673695541498,1.65994669,20685.0,20684.0,0.00029187]
[1673695541728,1.99865495,20685.0,20684.0,0.00029187]
[1673695541963,2.42485715,20685.0,20684.0,0.00029187]
[1673695542239,1.99865495,20685.0,20684.0,0.00029187]
[1673695542729,2.40953638,20685.0,20684.0,2.763e-05]
[1673695542964,2.66734147,20685.0,20684.0,2.763e-05]
[1673695543201,2.83225877,20685.0,20684.0,2.763e-05]
[1673695543442,2.97705949,20685.0,20684.0,2.763e-05]
[1673695543683,2.62479466,20685.0,20684.0,2.763e-05]
[1673695543917,3.11319316,20685.0,20684.0,2.763e-05]
[1673695544164,3.13569539,20685.0,20684.0,2.763e-05]
[1673695544401,2.64218536,20685.0,20684.0,2.763e-05]
[1673695544658,2.48332418,20685.0,20684.0,2.763e-05]
[1673695544896,2.69129751,20685.0,20684.0,2.763e-05]
[1673695545172,2.26857512,20685.0,20684.0,2.763e-05]
[1673695545402,2.12459843,20685.0,20684.0,2.763e-05]
[1673695545944,2.52671067,20685.0,20684.0,2.763e-05]
[1673695546393,1.90863339,20685.0,20684.0,2.763e-05]
[1673695546649,2.0526085,20685.0,20684.0,2.763e-05]
[1673695546897,0.1,20684.0,20683.0,0.0009663]
[1673695547154,9.8432219,20684.0,20683.0,0.0009663]
[1673695547402,9.58199749,20684.0,20683.0,0.0009663]
[1673695547650,10.20007477,20684.0,20683.0,0.0009663]
[1673695547892,10.33607477,20684.0,20683.0,0.0009663]
[1673695548154,10.55203981,20684.0,20683.0,0.0009663]
[1673695548387,10.41305436,20684.0,20683.0,0.0009663]
[1673695548638,9.82820618,20684.0,20683.0,0.0009663]
[1673695548880,9.36825148,20684.0,20683.0,0.0009663]
[1673695549643,9.23225148,20684.0,20683.0,0.0009663]
[1673695549928,9.36925148,20684.0,20683.0,0.0009663]
[1673695550177,9.47999749,20684.0,20683.0,0.0009663]
[1673695550423,9.81709966,20684.0,20683.0,0.0009663]
[1673695550925,9.95309966,20684.0,20683.0,0.0009663]
[1673695552075,10.09708932,20684.0,20683.0,0.0009663]
[1673695552336,2.81916152,20684.0,20683.0,0.0009663]
[1673695552579,2.7551369,20684.0,20683.0,0.0009663]
[1673695552830,2.8911369,20684.0,20683.0,8.734e-05]
[1673695553060,3.0441053,20684.0,20683.0,8.734e-05]
[1673695553296,3.6782865,20684.0,20683.0,8.734e-05]
[1673695553553,3.60638323,20684.0,20683.0,8.734e-05]
[1673695553789,3.74338323,20684.0,20683.0,8.734e-05]
[1673695554029,3.52734246,20684.0,20683.0,8.734e-05]
[1673695554260,3.26925387,20684.0,20683.0,8.734e-05]
[1673695554524,3.05324029,20684.0,20683.0,8.734e-05]
[1673695554992,3.76738977,20684.0,20683.0,8.734e-05]
[1673695555753,3.26937282,20684.0,20683.0,8.734e-05]
[1673695555995,3.94430114,20684.0,20683.0,8.734e-05]
[1673695556229,4.23245953,20684.0,20683.0,8.734e-05]
[1673695556459,3.94430114,20684.0,20683.0,8.734e-05]
[1673695558680,3.58309065,20684.0,20683.0,8.734e-05]
[1673695561906,0.1,20683.0,20681.0,10.00488014]
[1673695562122,2.11887194,20682.0,20681.0,10.00488014]
[1673695562361,2.69051094,20682.0,20681.0,9.99989014]
[1673695562609,3.4048425,20682.0,20681.0,9.99989014]
[1673695563367,3.61824083,20682.0,20681.0,9.99989014]
[1673695563611,3.12046437,20682.0,20681.0,9.99989014]
[1673695563884,3.25646437,20682.0,20681.0,9.99989014]
[1673695564122,3.30691329,20682.0,20681.0,9.99989014]
[1673695564370,3.5144076,20682.0,20681.0,9.99989014]
[1673695564617,2.94608463,20682.0,20681.0,9.99989014]
[1673695565619,0.36117999,20682.0,20681.0,9.99989014]
[1673695565861,0.136,20682.0,20681.0,10.25001418]
[1673695566102,0.14447752,20683.0,20681.0,10.25001418]
[1673695566423,0.136,20682.0,20681.0,10.25001418]
[1673695566911,0.60141552,20682.0,20681.0,10.25001418]
[1673695567172,0.36117999,20683.0,20681.0,10.25001418]
[1673695567417,0.320938,20682.0,20681.0,10.25101418]
[1673695567658,0.46541552,20682.0,20681.0,10.25101418]
[1673695568152,0.136,20683.0,20682.0,0.1]
[1673695568395,0.136,20683.0,20682.0,0.34494874]
[1673695568640,0.36117999,20684.0,20682.0,0.24494874]
[1673695569969,0.49517999,20684.0,20682.0,0.001]
[1673695570246,0.134,20684.0,20682.0,0.32700436]
[1673695570499,0.134,20684.0,20682.0,0.584511]
[1673695571306,0.14447752,20686.0,20683.0,0.26215765]
[1673695571577,0.014,20684.0,20683.0,0.26215765]
[1673695571832,0.14447752,20686.0,20683.0,0.26215765]
[1673695571833,0.13692715,20686.0,20683.0,0.26215765]
[1673695572081,0.34921696,20686.0,20683.0,0.26215765]
[1673695572365,0.13251449,20686.0,20683.0,0.26215765]
[1673695572644,0.14651449,20686.0,20683.0,0.28915765]
[1673695573145,0.014,20686.0,20683.0,0.0590949]
[1673695573395,0.014,20686.0,20684.0,0.1402]
[1673695573620,0.014,20686.0,20685.0,0.71810503]
[1673695573903,0.014,20686.0,20685.0,0.23466303]
[1673695574619,0.22460852,20687.0,20685.0,0.23466303]
[1673695574853,0.013,20686.0,20685.0,0.23466303]
[1673695575350,0.024,20686.0,20685.0,0.28666303]
[1673695575596,0.011,20686.0,20685.0,0.23466303]
[1673695575859,0.011,20686.0,20685.0,0.26066303]
[1673695576092,0.76940826,20689.0,20685.0,0.23466303]
[1673695576363,0.08097,20686.0,20685.0,0.0580949]
[1673695576586,0.08097,20686.0,20685.0,0.026]
[1673695577738,0.08097,20686.0,20684.0,0.18947285]
[1673695577739,0.07697,20686.0,20684.0,0.18947285]
[1673695578091,0.22092211,20687.0,20685.0,0.019]
[1673695578338,0.22092211,20687.0,20684.0,0.18947285]
[1673695578587,0.22092211,20687.0,20685.0,0.019]
[1673695578588,0.004,20686.0,20685.0,0.019]
[1673695578851,0.70007647,20688.0,20682.0,0.483496]
[1673695579101,1.89248195,20686.0,20684.0,0.02432809]
[1673695579354,1.73139574,20685.0,20681.0,10.03293928]
[1673695579597,1.73139574,20685.0,20684.0,0.026]
[1673695579598,8.35381096,20685.0,20684.0,0.026]
[1673695579867,8.90722736,20685.0,20684.0,0.026]
[1673695580132,9.20722736,20685.0,20684.0,0.026]
[1673695580657,0.1,20684.0,20681.0,9.99989014]
[1673695580905,2.2191115,20683.0,20681.0,9.99989014]
[1673695581137,0.320938,20682.0,20681.0,9.99957509]
[1673695581477,0.80445,20682.0,20681.0,9.99957509]
[1673695581648,1.07945,20682.0,20681.0,10.00257509]
[1673695581883,1.07945,20682.0,20681.0,9.99957509]
[1673695581884,1.30755535,20682.0,20681.0,9.99957509]
[1673695582124,1.45202583,20682.0,20681.0,9.99957509]
[1673695582361,1.80373121,20682.0,20681.0,10.00257509]
[1673695583318,1.45202583,20682.0,20681.0,9.99957509]
[1673695583565,1.58802583,20682.0,20681.0,10.00257509]
[1673695584316,1.80473121,20682.0,20681.0,10.00257509]
[1673695585038,1.58802583,20682.0,20681.0,10.00257509]
[1673695585573,1.58802583,20682.0,20681.0,9.99757509]
[1673695585819,1.21545,20682.0,20681.0,9.99757509]
[1673695586078,0.91545,20682.0,20681.0,9.99757509]
[1673695586331,0.619512,20682.0,20681.0,10.20242632]
[1673695587080,0.136,20682.0,20681.0,10.20242632]
[1673695587598,0.619512,20682.0,20681.0,10.20242632]
[1673695587843,0.940462,20682.0,20681.0,10.20242632]
[1673695588330,1.240462,20682.0,20681.0,10.20242632]
[1673695588791,1.057801,20682.0,20681.0,10.20242632]
[1673695589081,0.619512,20682.0,20681.0,10.20242632]
[1673695589577,0.919512,20682.0,20681.0,9.99757509]
[1673695589825,1.48829746,20682.0,20681.0,9.99757509]
[1673695590060,1.18829746,20682.0,20681.0,9.99757509]
[1673695590298,1.48829746,20682.0,20681.0,9.99757509]
[1673695591046,1.84947332,20682.0,20681.0,9.99757509]
[1673695591835,1.63276794,20682.0,20681.0,9.99757509]
[1673695592315,2.32667501,20682.0,20681.0,9.99757509]
[1673695592589,2.47114504,20682.0,20681.0,9.99757509]
[1673695595277,2.18220453,20682.0,20681.0,9.99757509]
[1673695595527,2.56549686,20682.0,20681.0,9.99757509]
[1673695595770,2.63773199,20682.0,20681.0,9.99757509]
[1673695596793,2.25443966,20682.0,20681.0,9.99757509]
[1673695597260,2.47123074,20682.0,20681.0,9.99757509]
[1673695597508,2.25443966,20682.0,20681.0,9.99757509]
[1673695598021,2.47123083,20682.0,20681.0,9.99757509]
[1673695598511,2.71133274,20682.0,20681.0,7.41841822]
[1673695598765,2.71133274,20682.0,20681.0,6.27539642]
[1673695598766,3.25424692,20682.0,20681.0,6.27539642]
[1673695599008,3.54872928,20682.0,20681.0,6.27539642]
[1673695599243,3.54872928,20682.0,20681.0,5.32285331]
[1673695599489,3.41272928,20682.0,20681.0,5.31985331]
[1673695600489,3.06917637,20682.0,20681.0,3.90880012]
[1673695600759,3.17016471,20682.0,20681.0,1.44109163]
[1673695601004,0.1,20681.0,20677.0,0.00617467]
[1673695601252,0.66119711,20678.0,20677.0,0.00617467]
[1673695601494,3.66324654,20678.0,20677.0,0.00617467]
[1673695601804,3.2051638,20678.0,20677.0,0.00617467]
[1673695602547,3.06555441,20678.0,20677.0,0.00617467]
[1673695603044,0.19541,20677.0,20676.0,0.00245837]
[1673695603286,2.05261235,20677.0,20676.0,0.00245837]
[1673695603771,2.19706224,20677.0,20676.0,0.00245837]
[1673695604280,2.33306224,20677.0,20676.0,0.00245837]
[1673695604547,2.18861235,20677.0,20676.0,0.00245837]
[1673695604770,2.33306224,20677.0,20676.0,0.00245837]
[1673695605248,2.71474824,20677.0,20676.0,0.00245837]
[1673695605999,2.78697624,20677.0,20676.0,0.00245837]
[1673695606233,1.74082741,20677.0,20676.0,0.03455327]
[1673695606474,1.74082741,20677.0,20676.0,0.26283104]
[1673695606475,0.136,20677.0,20676.0,0.26283104]
[1673695606731,0.45695,20677.0,20676.0,0.26283104]
[1673695606982,1.035989,20677.0,20676.0,0.00245837]
[1673695607224,1.34828029,20677.0,20676.0,0.00245837]
[1673695607462,0.999989,20677.0,20676.0,0.00245837]
[1673695607730,0.45595,20677.0,20676.0,0.00245837]
[1673695607981,0.75595,20677.0,20676.0,0.00245837]
[1673695608214,0.135,20677.0,20676.0,0.00245837]
[1673695608446,0.135,20677.0,20676.0,0.21806706]
[1673695608939,1.08687793,20680.0,20676.0,0.21806706]
[1673695609181,1.08687793,20680.0,20676.0,0.25016196]
[1673695609182,0.135,20677.0,20676.0,0.25016196]
[1673695609442,0.135,20677.0,20676.0,0.21806706]
[1673695609955,0.45595,20677.0,20674.0,1.05215658]
[1673695610206,0.45595,20677.0,20674.0,1.28353419]
[1673695610207,0.138289,20676.0,20674.0,1.28353419]
[1673695610494,0.3,20678.0,20674.0,0.23803419]
[1673695610706,0.1,20676.0,20674.0,0.23803419]
[1673695610937,1.05376009,20678.0,20674.0,0.23803419]
[1673695611179,0.3,20678.0,20674.0,0.23803419]
[1673695611425,0.32095,20677.0,20674.0,0.23803419]
[1673695611668,0.783606,20678.0,20675.0,0.18973554]
[1673695611917,0.056,20677.0,20675.0,0.0320949]
[1673695612164,0.53148441,20679.0,20675.0,0.5157689]
[1673695612165,0.04789941,20679.0,20675.0,0.5157689]
[1673695612398,0.06,20678.0,20676.0,0.0320949]
[1673695612657,0.06,20678.0,20677.0,0.483629]
[1673695612899,0.194,20678.0,20677.0,0.483629]
[1673695613174,7.2779278,20681.0,20677.0,0.483629]
[1673695613402,7.2779278,20681.0,20678.0,0.24125207]
[1673695613403,0.014,20679.0,20678.0,0.24125207]
[1673695613647,0.09541,20679.0,20676.0,0.483639]
[1673695613881,0.09541,20679.0,20676.0,0.70589899]
[1673695614129,0.56951217,20679.0,20676.0,0.70589899]
[1673695614366,0.56951217,20679.0,20676.0,0.22225999]
[1673695614604,0.1,20678.0,20676.0,0.22225999]
[1673695614852,0.413,20678.0,20677.0,0.011]
[1673695615099,0.413,20678.0,20676.0,0.22225999]
[1673695615100,0.3,20678.0,20676.0,0.22225999]
[1673695615328,0.3,20678.0,20676.0,0.23325999]
[1673695615596,0.3,20678.0,20676.0,0.22225999]
[1673695615856,0.015,20678.0,20676.0,0.23325999]
[1673695616102,0.315,20678.0,20676.0,0.011]
[1673695616363,0.015,20678.0,20676.0,0.011]
[1673695616926,0.11041,20678.0,20677.0,0.19579203]
[1673695617133,0.015,20678.0,20677.0,0.19579203]
[1673695617619,0.015,20678.0,20677.0,0.0320949]
[1673695617865,0.015,20678.0,20677.0,0.7351056]
[1673695618108,7.2779278,20681.0,20677.0,0.483629]
[1673695618356,7.2779278,20681.0,20677.0,0.73057979]
[1673695618601,7.2779278,20681.0,20678.0,0.18874355]
[1673695618879,7.2779278,20681.0,20678.0,0.67234055]
[1673695619410,7.2909278,20681.0,20678.0,0.67234055]
[1673695619611,7.2779278,20681.0,20678.0,0.67234055]
[1673695619854,7.2839278,20681.0,20678.0,0.68234055]
[1673695620880,0.006,20681.0,20678.0,0.493597]
[1673695621121,0.006,20681.0,20679.0,0.21927363]
[1673695621367,0.006,20681.0,20679.0,0.73493183]
[1673695621614,0.006,20681.0,20680.0,0.1]
[1673695621858,0.006,20681.0,20680.0,1.067116]
[1673695621859,0.00532798,20681.0,20680.0,1.067116]
[1673695622090,0.02272861,20683.0,20680.0,1.143013]
[1673695622333,0.071,20681.0,20680.0,1.0992109]
[1673695622569,0.02272861,20683.0,20680.0,1.143]
[1673695622821,0.02272861,20683.0,20680.0,1.1312109]
[1673695623068,0.013,20681.0,20680.0,1.099116]
[1673695623358,0.013,20681.0,20680.0,1.1835]
[1673695624551,0.03572861,20683.0,20680.0,1.1835]
[1673695624800,0.03572861,20683.0,20680.0,1.107616]
[1673695625043,0.02272861,20683.0,20681.0,0.07588]
[1673695625289,0.02272861,20683.0,20682.0,0.967024]
[1673695625521,0.02272861,20683.0,20682.0,1.042899]
[1673695625999,0.03572861,20683.0,20682.0,1.042899]
[1673695626245,0.02272861,20683.0,20682.0,1.042899]
[1673695626490,0.02272861,20683.0,20682.0,1.142899]
[1673695626734,0.03672861,20683.0,20682.0,1.26612866]
[1673695627029,0.03672861,20683.0,20682.0,1.074899]
[1673695628000,0.03672861,20683.0,20682.0,1.33823713]
[1673695632683,0.03672861,20683.0,20682.0,1.43823713]
[1673695633647,0.03672861,20683.0,20682.0,1.28614809]
[1673695634141,0.03672861,20683.0,20682.0,1.174899]
[1673695634695,0.03672861,20683.0,20682.0,1.483399]
[1673695634696,8.61e-06,20683.0,20682.0,1.483399]
[1673695634939,8.61e-06,20683.0,20682.0,1.37856203]
[1673695635438,8.61e-06,20683.0,20682.0,1.67856203]
[1673695636199,8.61e-06,20683.0,20682.0,1.37856203]
[1673695640415,8.61e-06,20683.0,20682.0,1.67856203]
[1673695641384,0.01349703,20685.0,20683.0,5.139e-05]
[1673695641623,0.01349703,20685.0,20684.0,1.590595]
[1673695641862,0.01349703,20685.0,20684.0,2.066457]
[1673695642128,0.01349703,20685.0,20684.0,2.074957]
[1673695642518,0.01349703,20685.0,20684.0,1.774957]
[1673695642519,0.02049703,20685.0,20684.0,1.774957]
[1673695642772,0.01349703,20685.0,20684.0,2.074957]
[1673695643020,0.01349703,20685.0,20684.0,2.085957]
[1673695643287,0.06125816,20688.0,20685.0,0.1]
[1673695643551,0.06125816,20688.0,20686.0,1.598954]
[1673695643813,0.01349703,20688.0,20687.0,0.175843]
[1673695644058,0.01402144,20689.0,20688.0,0.01349]
[1673695644311,0.06217361,20691.0,20688.0,1.056068]
[1673695644594,0.06217361,20691.0,20689.0,0.4]
[1673695644844,0.06217361,20691.0,20690.0,0.084323]
[1673695644845,0.01402144,20691.0,20690.0,0.084323]
[1673695645098,0.01402144,20691.0,20690.0,1.78738794]
[1673695645341,0.01402144,20691.0,20690.0,1.534298]
[1673695645888,0.01502144,20691.0,20690.0,1.534298]
[1673695646137,0.01402144,20691.0,20690.0,1.534298]
[1673695647463,0.01402144,20691.0,20690.0,1.973298]
[1673695647666,0.01502144,20691.0,20690.0,1.534298]
[1673695647915,0.01602144,20691.0,20690.0,1.673298]
[1673695648725,0.01602144,20691.0,20690.0,1.77280959]
[1673695648726,0.01402144,20691.0,20690.0,1.77280959]
[1673695648940,0.01402144,20691.0,20690.0,1.534298]
[1673695649187,0.01402144,20691.0,20690.0,1.181473]
[1673695649188,0.20574739,20691.0,20690.0,1.181473]
[1673695649467,0.20574739,20691.0,20690.0,0.622325]
[1673695649468,0.01502144,20691.0,20690.0,0.622325]
[1673695649726,0.11043144,20691.0,20690.0,0.622325]
[1673695650310,0.01402144,20691.0,20690.0,0.483325]
[1673695650556,0.01702144,20691.0,20690.0,0.622325]
[1673695650814,0.01702144,20691.0,20690.0,0.559146]
[1673695650815,0.01402144,20691.0,20690.0,0.559146]
[1673695651054,0.05002144,20691.0,20690.0,0.560146]
[1673695651325,0.05002144,20691.0,20688.0,0.73272741]
[1673695651326,0.10943144,20691.0,20688.0,0.73272741]
[1673695651589,0.01402144,20691.0,20690.0,0.022]
[1673695651821,0.00068286,20691.0,20690.0,1.15691815]
[1673695652068,2.02912894,20696.0,20691.0,0.21095442]
[1673695652069,1.75891498,20696.0,20691.0,0.21095442]
[1673695652306,0.04804489,20695.0,20692.0,0.5153609]
[1673695652546,0.00861498,20696.0,20692.0,0.5153609]
[1673695652785,0.41902894,20698.0,20693.0,0.22217525]
[1673695652786,0.40264392,20698.0,20693.0,0.22217525]
[1673695653026,0.40264392,20698.0,20694.0,0.0320949]
[1673695653268,0.72359392,20698.0,20695.0,0.0320949]
[1673695653515,0.138289,20697.0,20695.0,0.0320949]
[1673695653769,0.32095,20696.0,20693.0,0.70542525]
[1673695654018,0.54093292,20698.0,20693.0,0.70542525]
[1673695654261,1.08887764,20697.0,20694.0,0.011]
[1673695654508,0.1,20695.0,20691.0,0.73756192]
[1673695654747,0.51167595,20694.0,20691.0,0.73756192]
[1673695654985,0.138289,20693.0,20691.0,0.25447192]
[1673695655260,0.1,20695.0,20691.0,0.25447192]
[1673695655497,0.29072595,20695.0,20691.0,0.00019]
[1673695655753,0.3,20694.0,20691.0,0.08719]
[1673695655993,0.32095,20693.0,20691.0,0.08719]
[1673695656261,0.3,20694.0,20691.0,0.08719]
[1673695656500,0.32095,20693.0,20691.0,0.00019]
[1673695656746,0.138289,20692.0,20691.0,0.08719]
[1673695656996,0.32095,20692.0,20691.0,0.08719]
[1673695657240,0.001,20693.0,20691.0,0.087]
[1673695657483,0.32095,20692.0,20691.0,0.087]
[1673695657766,0.001,20693.0,20691.0,0.087]
[1673695658004,0.3,20694.0,20690.0,0.22596525]
[1673695658258,0.001,20692.0,20691.0,0.087]
[1673695658475,0.09641,20692.0,20691.0,0.087]
[1673695658959,0.001,20692.0,20691.0,0.087]
[1673695659682,0.3,20694.0,20690.0,0.19639811]
[1673695659909,0.302,20694.0,20690.0,0.36849301]
[1673695660157,0.67393595,20695.0,20690.0,0.22849301]
[1673695660403,7.7719958,20696.0,20692.0,0.19152382]
[1673695660404,7.2779278,20696.0,20692.0,0.19152382]
[1673695660635,0.8254,20697.0,20693.0,0.0320949]
[1673695660873,0.8254,20697.0,20694.0,0.0320949]
[1673695661115,0.15302583,20698.0,20694.0,0.0320949]
[1673695661116,0.32095,20696.0,20694.0,0.0320949]
[1673695661352,0.138289,20695.0,20692.0,1.22245693]
[1673695661590,0.19072595,20696.0,20692.0,1.20645693]
[1673695662325,0.32095,20695.0,20692.0,1.20645693]
[1673695662556,0.18072595,20696.0,20692.0,1.20645693]
[1673695662816,0.3,20697.0,20692.0,1.20645693]
[1673695663059,0.49072595,20697.0,20692.0,1.26455182]
[1673695663309,0.49072595,20697.0,20693.0,0.22265952]
[1673695663553,0.49072595,20697.0,20692.0,0.06438611]
[1673695663796,0.1,20695.0,20692.0,0.090481]
[1673695664041,0.1,20695.0,20692.0,0.04838611]
[1673695664042,0.138289,20694.0,20692.0,0.04838611]
[1673695664284,0.3,20694.0,20692.0,0.06438611]
[1673695664527,0.32095,20693.0,20692.0,0.016]
[1673695664764,0.32095,20693.0,20690.0,0.2570637]
[1673695665000,0.19072595,20693.0,20690.0,0.2570637]
[1673695665278,0.49072595,20693.0,20692.0,0.016]
[1673695665511,0.3,20693.0,20692.0,0.016]
[1673695665750,0.62095,20693.0,20690.0,0.2520637]
[1673695665981,0.14402336,20692.0,20690.0,0.2520637]
[1673695666230,0.00573436,20692.0,20690.0,0.2520637]
[1673695666468,0.0068803,20694.0,20690.0,0.7353867]
[1673695666705,0.0068803,20694.0,20692.0,0.016]
[1673695666946,0.0068803,20694.0,20691.0,0.483291]
[1673695667188,0.002,20692.0,20691.0,0.483291]
[1673695667427,0.0068803,20694.0,20691.0,0.483291]
[1673695667663,0.0088803,20694.0,20691.0,0.483291]
[1673695667927,0.0068803,20694.0,20691.0,0.483291]
[1673695668173,0.00690596,20695.0,20691.0,0.52538589]
[1673695668425,0.001,20692.0,20691.0,0.71238589]
[1673695668668,0.001,20692.0,20691.0,0.570291]
[1673695668912,0.001,20692.0,20691.0,0.88049006]
[1673695669645,0.001,20692.0,20691.0,0.96749006]
[1673695669895,0.00690596,20695.0,20691.0,0.69349006]
[1673695670144,0.001,20692.0,20691.0,0.82258495]
[1673695670388,0.001,20692.0,20691.0,0.78049006]
[1673695671371,0.001,20692.0,20691.0,0.570291]
[1673695671613,0.37561408,20698.0,20692.0,0.36292843]
[1673695671614,0.00706382,20697.0,20692.0,0.36292843]
[1673695671880,0.01456768,20698.0,20693.0,1.08437389]
[1673695671881,0.00531518,20696.0,20693.0,1.08437389]
[1673695672115,0.00531518,20696.0,20693.0,1.00856789]
[1673695672361,0.00531518,20696.0,20693.0,0.966473]
[1673695673622,0.02931518,20696.0,20693.0,0.967473]
[1673695674081,0.024,20696.0,20693.0,0.967473]
[1673695674330,0.03043577,20696.0,20693.0,0.967473]
[1673695674835,0.03043577,20696.0,20694.0,0.23864504]
[1673695675858,0.00643577,20696.0,20694.0,0.23864504]
[1673695676104,0.03043577,20696.0,20694.0,0.72987504]
[1673695676349,0.024,20696.0,20694.0,0.72987504]
[1673695677630,0.02078317,20696.0,20694.0,0.72987504]
[1673695677905,0.02724043,20696.0,20694.0,0.008]
[1673695678151,0.00591081,20695.0,20694.0,0.008]
[1673695679136,0.00571232,20696.0,20693.0,0.71564094]
[1673695679382,0.11641,20695.0,20694.0,0.008]
[1673695680382,0.32671232,20696.0,20693.0,0.23340394]
[1673695680687,0.3610464,20697.0,20693.0,0.23340394]
[1673695680688,0.14436851,20697.0,20694.0,0.23842626]
[1673695680926,0.02119468,20698.0,20694.0,0.76373315]
[1673695681161,0.021,20695.0,20694.0,0.77173315]
[1673695681417,0.021,20695.0,20694.0,0.72963826]
[1673695681673,0.00632831,20697.0,20694.0,0.72135026]
[1673695681916,0.00632831,20697.0,20694.0,0.72935026]
[1673695682185,0.00730508,20696.0,20694.0,0.72135026]
[1673695682440,0.00730508,20696.0,20694.0,0.72935026]
[1673695682673,0.021,20695.0,20694.0,0.72935026]
[1673695683667,0.37561408,20698.0,20694.0,0.72135026]
[1673695683905,0.38171178,20698.0,20694.0,0.77144515]
[1673695684187,0.38171178,20698.0,20694.0,0.76344515]
[1673695684419,0.00706398,20697.0,20694.0,0.77144515]
[1673695684667,0.021,20695.0,20694.0,0.491212]
[1673695684900,0.021,20695.0,20694.0,0.583212]
[1673695685154,0.00706398,20697.0,20695.0,0.21485104]
[1673695685874,0.00706398,20697.0,20695.0,0.69805604]
[1673695686839,0.02706398,20697.0,20695.0,0.70805604]
[1673695688606,0.17143249,20697.0,20695.0,0.70805604]
[1673695688843,0.47143249,20697.0,20695.0,0.70805604]
[1673695689806,0.02706398,20697.0,20695.0,0.70805604]
[1673695690053,0.02,20697.0,20695.0,0.70805604]
[1673695690298,0.02,20697.0,20696.0,0.19587939]
[1673695691084,0.02005686,20698.0,20696.0,0.19587939]
[1673695691308,0.02005686,20698.0,20696.0,0.20687939]
[1673695691555,0.02,20697.0,20696.0,0.20687939]
[1673695691812,0.02,20697.0,20696.0,0.011]
[1673695692065,0.02,20697.0,20696.0,0.494185]
[1673695692307,0.00780772,20697.0,20696.0,0.483185]
[1673695692540,0.00780772,20697.0,20696.0,0.011]
[1673695692780,0.18601505,20698.0,20695.0,0.68056869]
[1673695693023,0.04164654,20698.0,20695.0,0.68056869]
[1673695693254,0.02,20697.0,20696.0,0.011]
[1673695693726,0.02164654,20698.0,20695.0,0.68056869]
[1673695694218,0.04164654,20698.0,20695.0,0.69056869]
[1673695694455,0.02164654,20698.0,20695.0,0.68056869]
[1673695695180,0.02164654,20698.0,20696.0,0.26096888]
[1673695695420,0.02,20697.0,20696.0,0.75514888]
[1673695695700,0.02164654,20698.0,20696.0,0.74414888]
[1673695695977,0.04164654,20698.0,20696.0,0.74414888]
[1673695696195,0.03456768,20698.0,20696.0,0.74414888]
[1673695696435,0.05456768,20698.0,20696.0,0.75514888]
[1673695698137,0.05456768,20698.0,20697.0,0.22745451]
[1673695698386,0.05456768,20698.0,20696.0,0.49418]
[1673695698636,0.04879035,20698.0,20697.0,0.583161]
[1673695698892,0.04879035,20698.0,20697.0,0.658943]
[1673695699390,0.02879035,20698.0,20697.0,0.558943]
[1673695699625,0.00879035,20698.0,20697.0,0.658943]
[1673695699863,0.00979035,20698.0,20697.0,0.667443]
[1673695700346,0.00879035,20698.0,20697.0,0.667443]
[1673695700592,0.00979035,20698.0,20697.0,0.806443]
[1673695701102,0.00979035,20698.0,20697.0,0.706443]
[1673695701575,0.00979035,20698.0,20697.0,0.90950567]
[1673695702608,0.00979035,20698.0,20697.0,0.697943]
[1673695703112,0.00979035,20698.0,20697.0,0.797943]
[1673695703377,0.00979035,20698.0,20697.0,0.87313343]
[1673695703644,0.00979035,20698.0,20697.0,0.86313343]
[1673695705854,0.00979035,20698.0,20697.0,0.38997243]
[1673695706098,0.01606469,20698.0,20697.0,0.139]
[1673695706608,0.00979035,20698.0,20697.0,0.722161]
[1673695706851,0.00979035,20698.0,20697.0,0.84791287]
[1673695707341,0.00979035,20698.0,20697.0,0.92368787]